bitfinex/quotes_BTCUSD_20241102
["timestamp","ask_amount","ask_price","bid_price","bid_amount"]
[1730531546860,0.000822,69788.0,69787.0,0.37542513]
[1730531547069,0.03576943,69788.0,69787.0,0.37542513]
[1730531550421,0.03576943,69788.0,69787.0,0.37042513]
[1730531550633,0.03576918,69788.0,69787.0,0.37042513]
[1730531550792,0.03576918,69788.0,69787.0,0.37542513]
[1730531551856,0.03576918,69788.0,69787.0,0.37042513]
[1730531552063,0.03576918,69788.0,69787.0,0.37542513]
[1730531552460,0.03576918,69788.0,69787.0,0.37042513]
[1730531552671,0.03576918,69788.0,69787.0,0.37542513]
[1730531553995,0.03576918,69788.0,69787.0,0.37042513]
[1730531554413,0.000822,69788.0,69787.0,0.37542513]
[1730531554619,0.03576977,69788.0,69787.0,0.37542513]
[1730531556977,0.03576977,69788.0,69787.0,0.37042513]
[1730531557194,0.03576977,69788.0,69787.0,0.37542513]
[1730531558085,0.03576977,69788.0,69787.0,0.26635854]
[1730531559854,0.03576977,69788.0,69787.0,0.26135854]
[1730531560072,0.03576977,69788.0,69787.0,0.26635854]
[1730531560522,0.03576977,69788.0,69787.0,0.26135854]
[1730531560746,0.03577115,69788.0,69787.0,0.26135854]
[1730531562123,0.000822,69788.0,69787.0,0.26135854]
[1730531562340,0.03577181,69788.0,69787.0,0.26135854]
[1730531565795,0.000822,69788.0,69787.0,0.26135854]
[1730531566003,0.03577406,69788.0,69787.0,0.26135854]
[1730531569496,0.000822,69788.0,69787.0,0.26135854]
[1730531569702,0.07072611,69788.0,69787.0,0.26135854]
[1730531572052,0.03577412,69788.0,69787.0,0.26135854]
[1730531572258,0.07072592,69788.0,69787.0,0.26135854]
[1730531573137,0.03577412,69788.0,69787.0,0.26135854]
[1730531573351,0.07072585,69788.0,69787.0,0.26135854]
[1730531573570,0.03577373,69788.0,69787.0,0.26135854]
[1730531576016,0.05838028,69788.0,69787.0,0.26135854]
[1730531576910,0.02342855,69788.0,69787.0,0.26135854]
[1730531577134,0.05838015,69788.0,69787.0,0.26135854]
[1730531578035,0.02342855,69788.0,69787.0,0.26135854]
[1730531578246,0.0583783,69788.0,69787.0,0.26135854]
[1730531580379,0.05837588,69788.0,69787.0,0.26135854]
[1730531583319,0.05837588,69788.0,69787.0,0.33955854]
[1730531583536,0.01426328,69788.0,69787.0,0.33955854]
[1730531590226,0.01426328,69788.0,69787.0,0.26135854]
[1730531592462,0.01426328,69788.0,69787.0,0.25035854]
[1730531592898,0.01426328,69788.0,69787.0,0.26435854]
[1730531593347,0.01426328,69788.0,69787.0,0.16405354]
[1730531593550,0.13426543,69788.0,69787.0,0.25035854]
[1730531593746,0.15687053,69788.0,69787.0,0.26435854]
[1730531593949,0.13536688,69788.0,69787.0,0.27835854]
[1730531594195,0.15687071,69788.0,69787.0,0.26435854]
[1730531594372,0.15687071,69788.0,69787.0,0.25035854]
[1730531594590,0.15687071,69788.0,69787.0,0.26435854]
[1730531594796,0.15687071,69788.0,69787.0,0.16405354]
[1730531594965,0.15687071,69788.0,69787.0,0.26435854]
[1730531595165,0.15687071,69788.0,69787.0,0.17805354]
[1730531596167,0.15687071,69788.0,69787.0,0.19205354]
[1730531597222,0.1219271,69788.0,69787.0,0.19205354]
[1730531597453,0.15686382,69788.0,69787.0,0.19205354]
[1730531599390,0.15020382,69788.0,69787.0,0.19205354]
[1730531600066,0.15020382,69788.0,69787.0,0.29235854]
[1730531600293,0.15020382,69788.0,69787.0,0.19205354]
[1730531601163,0.15019841,69788.0,69787.0,0.19205354]
[1730531601880,0.05753641,69788.0,69787.0,0.19205354]
[1730531603712,0.03604022,69788.0,69787.0,0.19205354]
[1730531605001,0.03603735,69788.0,69787.0,0.19205354]
[1730531606702,0.03603735,69788.0,69787.0,0.29235854]
[1730531607153,0.0234271,69788.0,69787.0,0.29235854]
[1730531607632,0.0368575,69788.0,69787.0,0.29235854]
[1730531608309,0.0368565,69788.0,69787.0,0.29235854]
[1730531608772,0.0368565,69788.0,69787.0,0.19205354]
[1730531608982,0.0368565,69788.0,69787.0,0.29235854]
[1730531609188,0.0368565,69788.0,69787.0,0.19205354]
[1730531611222,0.0368565,69788.0,69787.0,0.29235854]
[1730531611681,0.0142514,69788.0,69787.0,0.29235854]
[1730531611893,0.03684684,69788.0,69787.0,0.29235854]
[1730531615492,0.02341744,69788.0,69787.0,0.29235854]
[1730531615728,0.03684542,69788.0,69787.0,0.29235854]
[1730531615936,0.02341744,69788.0,69787.0,0.29235854]
[1730531616142,0.03684542,69788.0,69787.0,0.29235854]
[1730531618383,0.03684672,69788.0,69787.0,0.29235854]
[1730531619292,0.03684757,69788.0,69787.0,0.29235854]
[1730531625745,0.03684757,69788.0,69787.0,0.19205354]
[1730531626440,0.13414757,69788.0,69787.0,0.19205354]
[1730531626676,0.13415667,69788.0,69787.0,0.19205354]
[1730531627120,0.12071744,69788.0,69787.0,0.19205354]
[1730531627344,0.13415706,69788.0,69787.0,0.19205354]
[1730531629427,0.13415706,69788.0,69787.0,0.18705354]
[1730531629649,0.13415706,69788.0,69787.0,0.19205354]
[1730531630359,0.12071744,69788.0,69787.0,0.19205354]
[1730531630569,0.13415945,69788.0,69787.0,0.19205354]
[1730531633964,0.12071744,69788.0,69787.0,0.19205354]
[1730531634786,0.02341744,69788.0,69787.0,0.19205354]
[1730531638498,0.30322044,69788.0,69787.0,0.048644]
[1730531638725,0.5693946,69788.0,69787.0,0.048644]
[1730531639839,0.5693946,69788.0,69787.0,0.020644]
[1730531640258,0.5693946,69788.0,69787.0,0.023644]
[1730531640483,0.60432896,69788.0,69787.0,0.009644]
[1730531640933,0.5693946,69788.0,69787.0,0.024644]
[1730531641152,0.60432896,69788.0,69787.0,0.024644]
[1730531641570,0.60432831,69788.0,69787.0,0.010644]
[1730531642009,0.49689441,69788.0,69787.0,0.006644]
[1730531642241,0.59689441,69788.0,69787.0,0.006644]
[1730531642686,0.5828565,69788.0,69787.0,0.006644]
[1730531642950,0.33815415,69788.0,69787.0,0.006644]
[1730531643169,0.33815415,69788.0,69787.0,0.002644]
[1730531643822,0.33815415,69788.0,69787.0,0.001644]
[1730531644035,0.40261714,69788.0,69787.0,0.001644]
[1730531644248,0.49679425,69788.0,69787.0,0.001644]
[1730531644456,0.58275634,69788.0,69787.0,0.001644]
[1730531645096,0.49679425,69788.0,69787.0,0.001644]
[1730531645315,0.49779425,69788.0,69787.0,0.001644]
[1730531646223,0.33915415,69788.0,69787.0,0.001644]
[1730531647553,0.33815415,69788.0,69787.0,0.001644]
[1730531647756,0.15865415,69788.0,69787.0,0.001644]
[1730531647971,0.15865415,69788.0,69787.0,0.002644]
[1730531648599,0.15865415,69788.0,69787.0,0.001644]
[1730531648815,0.15865415,69788.0,69787.0,0.002644]
[1730531649306,0.22310336,69788.0,69787.0,0.003644]
[1730531650809,0.15865415,69788.0,69787.0,0.003644]
[1730531650998,0.22309994,69788.0,69787.0,0.003644]
[1730531655661,0.22308918,69788.0,69787.0,0.003644]
[1730531657135,0.32975415,69788.0,69787.0,0.003644]
[1730531657334,0.48831993,69788.0,69787.0,0.003644]
[1730531658601,0.48831993,69788.0,69787.0,0.002644]
[1730531658813,0.48831993,69788.0,69787.0,0.001644]
[1730531659019,0.4892933,69788.0,69787.0,0.001644]
[1730531663094,0.46781202,69788.0,69787.0,0.001644]
[1730531663316,0.59664879,69788.0,69787.0,0.001644]
[1730531663850,0.48930396,69788.0,69787.0,0.001644]
[1730531664051,0.33073818,69788.0,69787.0,0.001644]
[1730531665887,0.30925034,69788.0,69787.0,0.001644]
[1730531666911,0.31125034,69788.0,69787.0,0.001644]
[1730531667070,0.30925034,69788.0,69787.0,0.001644]
[1730531668535,0.46775154,69788.0,69787.0,0.001644]
[1730531668737,0.30925034,69788.0,69787.0,0.001644]
[1730531668946,0.46775154,69788.0,69787.0,0.001644]
[1730531671559,0.56775154,69788.0,69787.0,0.001644]
[1730531673935,0.55432164,69788.0,69787.0,0.001644]
[1730531674157,0.56775072,69788.0,69787.0,0.001644]
[1730531677041,0.56975072,69788.0,69787.0,0.001644]
[1730531677245,0.56775072,69788.0,69787.0,0.001644]
[1730531677913,0.56975072,69788.0,69787.0,0.001644]
[1730531678144,0.56775072,69788.0,69787.0,0.001644]
[1730531678353,0.57118747,69788.0,69787.0,0.001644]
[1730531680811,0.57119047,69788.0,69787.0,0.001644]
[1730531683765,0.61595566,69788.0,69787.0,0.001644]
[1730531684857,0.4448606,69788.0,69787.0,0.001644]
[1730531685063,0.40009541,69788.0,69787.0,0.001644]
[1730531687996,0.38665839,69788.0,69787.0,0.001644]
[1730531688201,0.40010103,69788.0,69787.0,0.001644]
[1730531689244,0.44488358,69788.0,69787.0,0.001644]
[1730531692229,0.44500085,69788.0,69787.0,0.001644]
[1730531694259,0.57390983,69788.0,69787.0,0.001644]
[1730531695136,0.56046719,69788.0,69787.0,0.001644]
[1730531695376,0.57391103,69788.0,69787.0,0.001644]
[1730531695595,0.57391118,69788.0,69787.0,0.001644]
[1730531697887,0.57391143,69788.0,69787.0,0.001644]
[1730531698827,0.57391152,69788.0,69787.0,0.001644]
[1730531699277,0.44500254,69788.0,69787.0,0.001644]
[1730531701022,0.44509688,69788.0,69787.0,0.001644]
[1730531704878,0.43165255,69788.0,69787.0,0.001644]
[1730531705341,0.44509787,69788.0,69787.0,0.001644]
[1730531708370,0.44509833,69788.0,69787.0,0.001644]
[1730531709466,0.44519523,69788.0,69787.0,0.001644]
[1730531712566,0.52249523,69788.0,69787.0,0.001644]
[1730531712744,0.61319523,69788.0,69787.0,0.001644]
[1730531712932,0.75839268,69788.0,69787.0,0.001644]
[1730531713330,0.61319523,69788.0,69787.0,0.001644]
[1730531713536,0.61806051,69788.0,69787.0,0.001644]
[1730531713746,0.4592508,69788.0,69787.0,0.001644]
[1730531713949,0.61806356,69788.0,69787.0,0.001644]
[1730531714182,0.61806267,69788.0,69787.0,0.001644]
[1730531715275,0.60461778,69788.0,69787.0,0.001644]
[1730531715525,0.61806196,69788.0,69787.0,0.001644]
[1730531716333,0.45006196,69788.0,69787.0,0.001644]
[1730531723164,0.45004653,69788.0,69787.0,0.001644]
[1730531726509,0.45004476,69788.0,69787.0,0.001644]
[1730531727814,0.45004198,69788.0,69787.0,0.001644]
[1730531728505,0.45004121,69788.0,69787.0,0.001644]
[1730531728947,0.45004122,69788.0,69787.0,0.001644]
[1730531730057,0.43659881,69788.0,69787.0,0.001644]
[1730531730271,0.45004084,69788.0,69787.0,0.001644]
[1730531733621,0.4500409,69788.0,69787.0,0.001644]
[1730531734904,0.29124711,69788.0,69787.0,0.001644]
[1730531736186,0.45004097,69788.0,69787.0,0.001644]
[1730531737728,0.43659888,69788.0,69787.0,0.001644]
[1730531737945,0.45004116,69788.0,69787.0,0.001644]
[1730531740770,0.43659888,69788.0,69787.0,0.001644]
[1730531741007,0.45004186,69788.0,69787.0,0.001644]
[1730531744335,0.43659867,69788.0,69787.0,0.001644]
[1730531744533,0.45004257,69788.0,69787.0,0.001644]
[1730531748150,0.45004329,69788.0,69787.0,0.001644]
[1730531748566,0.4500434,69788.0,69787.0,0.001644]
[1730531749801,0.43539446,69788.0,69787.0,0.001644]
[1730531753698,0.43539686,69788.0,69787.0,0.001644]
[1730531754113,0.43913021,69788.0,69787.0,0.001644]
[1730531759296,0.43913404,69788.0,69787.0,0.001644]
[1730531759549,0.42568548,69788.0,69787.0,0.001644]
[1730531766073,0.42570393,69788.0,69787.0,0.001644]
[1730531769970,0.46066468,69788.0,69787.0,0.001644]
[1730531771005,0.45966468,69788.0,69787.0,0.001644]
[1730531771430,0.46066468,69788.0,69787.0,0.003644]
[1730531771838,0.45966468,69788.0,69787.0,0.002644]
[1730531772053,0.45966468,69788.0,69787.0,0.003644]
[1730531772307,0.46066468,69788.0,69787.0,0.002644]
[1730531772775,0.46066363,69788.0,69787.0,0.003644]
[1730531773950,0.44114997,69788.0,69787.0,0.003644]
[1730531774173,0.43914997,69788.0,69787.0,0.003644]
[1730531774644,0.53614997,69788.0,69787.0,0.001644]
[1730531774850,0.7640518,69788.0,69787.0,0.002644]
[1730531775065,0.77610042,69788.0,69787.0,0.003644]
[1730531775540,0.63087537,69788.0,69787.0,0.003644]
[1730531775752,0.62587537,69788.0,69787.0,0.002644]
[1730531775983,0.62587537,69788.0,69787.0,0.001644]
[1730531775984,0.61387537,69788.0,69787.0,0.001644]
[1730531776195,0.61887537,69788.0,69787.0,0.002644]
[1730531776419,0.63087537,69788.0,69787.0,0.003644]
[1730531777897,0.63086602,69788.0,69787.0,0.003644]
[1730531783257,0.61742933,69788.0,69787.0,0.003644]
[1730531783466,0.63085804,69788.0,69787.0,0.003644]
[1730531784086,0.63069162,69788.0,69787.0,0.003644]
[1730531787566,0.77573674,69788.0,69787.0,0.003644]
[1730531791551,0.47201814,69788.0,69787.0,0.003644]
[1730531791758,0.45576961,69788.0,69787.0,0.003644]
[1730531792183,0.75941893,69788.0,69787.0,0.003644]
[1730531793925,0.45576961,69788.0,69787.0,0.003644]
[1730531795354,0.47196189,69788.0,69787.0,0.003644]
[1730531797124,0.63057907,69788.0,69787.0,0.003644]
[1730531797370,0.630716,69788.0,69787.0,0.003644]
[1730531797570,0.47209882,69788.0,69787.0,0.003644]
[1730531797817,0.47209971,69788.0,69787.0,0.003644]
[1730531801039,0.47210357,69788.0,69787.0,0.003644]
[1730531802050,0.63070829,69788.0,69787.0,0.003644]
[1730531806815,0.55500829,69788.0,69787.0,0.003644]
[1730531807037,0.39640544,69788.0,69787.0,0.003644]
[1730531807261,0.55501169,69788.0,69787.0,0.003644]
[1730531807507,0.45501169,69788.0,69787.0,0.003644]
[1730531808194,0.45502534,69788.0,69787.0,0.21873323]
[1730531808419,0.35502534,69788.0,69787.0,0.178644]
[1730531808638,0.31024279,69788.0,69787.0,0.178644]
[1730531809081,0.30524279,69788.0,69787.0,0.178644]
[1730531809520,0.41263982,69788.0,69787.0,0.178644]
[1730531809737,0.51263982,69788.0,69787.0,0.178644]
[1730531811267,0.40524279,69788.0,69787.0,0.178644]
[1730531811544,0.49114646,69788.0,69787.0,0.178644]
[1730531811775,0.49114646,69788.0,69787.0,0.177644]
[1730531811776,0.37912356,69788.0,69787.0,0.177644]
[1730531812214,0.37812356,69788.0,69787.0,0.176644]
[1730531812874,0.28821989,69788.0,69787.0,0.176644]
[1730531813339,0.28921989,69788.0,69787.0,0.176644]
[1730531813556,0.13561364,69788.0,69787.0,0.176644]
[1730531813783,0.13061364,69788.0,69787.0,0.176644]
[1730531814238,0.13261364,69788.0,69787.0,0.176644]
[1730531815364,0.13260561,69788.0,69787.0,0.176644]
[1730531815589,0.1970109,69788.0,69787.0,0.176644]
[1730531816697,0.19701052,69788.0,69787.0,0.176644]
[1730531818068,0.19783252,69788.0,69787.0,0.176644]
[1730531819448,0.133422,69788.0,69787.0,0.176644]
[1730531821213,0.19780738,69788.0,69787.0,0.176644]
[1730531821673,0.13342055,69788.0,69787.0,0.176644]
[1730531825600,0.12000953,69788.0,69787.0,0.176644]
[1730531826537,0.16292384,69788.0,69787.0,0.176644]
[1730531829591,0.1763359,69788.0,69787.0,0.176644]
[1730531833573,0.13342159,69788.0,69787.0,0.176644]
[1730531836580,0.19780261,69788.0,69787.0,0.176644]
[1730531842677,0.19780261,69788.0,69787.0,0.100744]
[1730531846261,0.13342159,69788.0,69787.0,0.100744]
[1730531847101,0.12000953,69788.0,69787.0,0.100744]
[1730531847316,0.13345585,69788.0,69787.0,0.100744]
[1730531847539,0.27854567,69788.0,69787.0,0.100744]
[1730531847742,0.291992,69788.0,69787.0,0.100744]
[1730531848166,0.291992,69788.0,69787.0,0.001644]
[1730531848594,0.37783336,69788.0,69787.0,0.001644]
[1730531850568,0.291992,69788.0,69787.0,0.001644]
[1730531850784,0.29199204,69788.0,69787.0,0.001644]
[1730531851448,0.39929374,69788.0,69787.0,0.001644]
[1730531852559,0.29199204,69788.0,69787.0,0.001644]
[1730531854250,0.27854567,69788.0,69787.0,0.001644]
[1730531854464,0.29199276,69788.0,69787.0,0.001644]
[1730531856810,0.29229122,69788.0,69787.0,0.001644]
[1730531857872,0.2922912,69788.0,69787.0,0.001644]
[1730531860254,0.1334566,69788.0,69787.0,0.001644]
[1730531861324,0.13345668,69788.0,69787.0,0.001644]
[1730531861526,0.13345628,69788.0,69787.0,0.001644]
[1730531866306,0.23205628,69788.0,69787.0,0.001644]
[1730531866526,0.33405628,69788.0,69787.0,0.001644]
[1730531866729,0.46027811,69788.0,69787.0,0.001644]
[1730531867487,0.27827811,69788.0,69787.0,0.001644]
[1730531867937,0.23345628,69788.0,69787.0,0.001644]
[1730531869053,0.23344808,69788.0,69787.0,0.001644]
[1730531872537,0.39219336,69788.0,69787.0,0.001644]
[1730531876981,0.3921859,69788.0,69787.0,0.001644]
[1730531882124,0.52119187,69788.0,69787.0,0.001644]
[1730531883395,0.61697613,69788.0,69787.0,0.001644]
[1730531885154,0.60353758,69788.0,69787.0,0.001644]
[1730531885375,0.61697363,69788.0,69787.0,0.001644]
[1730531885624,0.76210535,69788.0,69787.0,0.001644]
[1730531885866,0.76665735,69788.0,69787.0,0.001644]
[1730531887174,0.62152563,69788.0,69787.0,0.001644]
[1730531888727,0.6215173,69788.0,69787.0,0.001644]
[1730531889164,0.62151731,69788.0,69787.0,0.001644]
[1730531891314,0.62572115,69788.0,69787.0,0.001644]
[1730531892413,0.62372115,69788.0,69787.0,0.001644]
[1730531893088,0.62572115,69788.0,69787.0,0.001644]
[1730531894009,0.96936663,69788.0,69787.0,0.001644]
[1730531894232,0.9321359,69788.0,69787.0,0.001644]
[1730531894456,0.7871764,69788.0,69787.0,0.001644]
[1730531894930,0.7861764,69788.0,69787.0,0.001644]
[1730531895355,0.7951764,69788.0,69787.0,0.002644]
[1730531895560,0.7931764,69788.0,69787.0,0.002644]
[1730531895770,0.7841764,69788.0,69787.0,0.001644]
[1730531896008,0.78917064,69788.0,69787.0,0.002644]
[1730531896252,0.92910027,69788.0,69787.0,0.001644]
[1730531896489,0.93410027,69788.0,69787.0,0.002644]
[1730531897547,0.93410027,69788.0,69787.0,0.003644]
[1730531897767,0.94510027,69788.0,69787.0,0.003644]
[1730531898429,0.94483509,69788.0,69787.0,0.003644]
[1730531899320,0.79992654,69788.0,69787.0,0.003644]
[1730531899529,0.78650457,69788.0,69787.0,0.003644]
[1730531899753,0.397005,69787.0,69786.0,0.07903498]
[1730531899988,0.97029644,69787.0,69786.0,0.07903498]
[1730531900206,1.13818714,69787.0,69786.0,0.07903498]
[1730531901337,1.14518714,69787.0,69786.0,0.08003498]
[1730531902185,1.15518714,69787.0,69786.0,0.08103498]
[1730531902850,1.15518714,69787.0,69786.0,0.05237598]
[1730531903326,1.14176808,69787.0,69786.0,0.05237598]
[1730531903543,1.1551864,69787.0,69786.0,0.05237598]
[1730531903774,1.15518589,69787.0,69786.0,0.05237598]
[1730531904883,1.15478947,69787.0,69786.0,0.05237598]
[1730531905313,0.002,69777.0,69771.0,0.21508923]
[1730531905546,0.30919438,69772.0,69771.0,0.21508923]
[1730531905767,0.49856665,69772.0,69771.0,0.21508923]
[1730531905978,0.200335,69766.0,69765.0,0.001644]
[1730531906185,0.48111491,69766.0,69765.0,0.001644]
[1730531906647,0.5884456,69766.0,69765.0,0.001644]
[1730531906861,0.48111491,69766.0,69765.0,0.001644]
[1730531907282,0.58839217,69766.0,69765.0,0.001644]
[1730531907807,0.69726055,69766.0,69765.0,0.001644]
[1730531908015,0.58839217,69766.0,69765.0,0.001644]
[1730531908234,0.48111491,69766.0,69765.0,0.001644]
[1730531908448,0.48111491,69766.0,69765.0,0.002644]
[1730531909186,0.86946055,69766.0,69765.0,0.002644]
[1730531909390,0.49854064,69766.0,69765.0,0.003644]
[1730531910031,0.49854064,69766.0,69765.0,0.002644]
[1730531910254,0.60574709,69766.0,69765.0,0.002644]
[1730531910493,0.61074709,69766.0,69765.0,0.002644]
[1730531910723,0.59732928,69766.0,69765.0,0.001644]
[1730531910954,0.61773707,69766.0,69765.0,0.002644]
[1730531912290,0.50553062,69766.0,69765.0,0.002644]
[1730531912746,0.51053062,69766.0,69765.0,0.003644]
[1730531912971,0.61773707,69766.0,69765.0,0.003644]
[1730531913228,0.51053062,69766.0,69765.0,0.003644]
[1730531914380,0.58283435,69766.0,69765.0,0.003644]
[1730531914587,0.59624052,69766.0,69765.0,0.003644]
[1730531915233,0.59626376,69766.0,69765.0,0.003644]
[1730531915443,0.51055224,69766.0,69765.0,0.003644]
[1730531916299,0.59625085,69766.0,69765.0,0.003644]
[1730531916511,0.59593653,69766.0,69765.0,0.003644]
[1730531916922,0.60149446,69766.0,69765.0,0.003644]
[1730531917124,0.60349446,69766.0,69765.0,0.003644]
[1730531918067,0.69897991,69766.0,69765.0,0.003644]
[1730531918274,0.71237345,69766.0,69765.0,0.003644]
[1730531918486,0.62668266,69766.0,69765.0,0.003644]
[1730531918905,0.82520821,69766.0,69765.0,0.003644]
[1730531920183,0.82420821,69766.0,69765.0,0.003644]
[1730531920396,0.8232089,69766.0,69765.0,0.003644]
[1730531921036,0.8252089,69766.0,69765.0,0.003644]
[1730531923962,0.81965097,69766.0,69765.0,0.003644]
[1730531925059,0.81966348,69766.0,69765.0,0.003644]
[1730531925504,0.71253288,69766.0,69765.0,0.003644]
[1730531925747,0.71255231,69766.0,69765.0,0.003644]
[1730531925962,0.60166069,69766.0,69765.0,0.003644]
[1730531928828,0.60366069,69766.0,69765.0,0.003644]
[1730531929016,0.60366596,69766.0,69765.0,0.003644]
[1730531929231,0.64836371,69766.0,69765.0,0.003644]
[1730531929440,0.55696371,69766.0,69765.0,0.003644]
[1730531930287,0.55702911,69766.0,69765.0,0.003644]
[1730531932405,0.55704056,69766.0,69765.0,0.003644]
[1730531933034,0.55504056,69766.0,69765.0,0.003644]
[1730531936408,0.54161459,69766.0,69765.0,0.003644]
[1730531936614,0.55506246,69766.0,69765.0,0.003644]
[1730531937057,0.55706246,69766.0,69765.0,0.003644]
[1730531941265,0.68568376,69766.0,69765.0,0.003644]
[1730531941670,0.55706246,69766.0,69765.0,0.003644]
[1730531942273,0.67223589,69766.0,69765.0,0.003644]
[1730531942495,0.68605906,69766.0,69765.0,0.003644]
[1730531942667,0.68405906,69766.0,69765.0,0.003644]
[1730531944134,0.55527066,69766.0,69765.0,0.003644]
[1730531944340,0.44637904,69766.0,69765.0,0.095544]
[1730531944548,0.5752086,69766.0,69765.0,0.095544]
[1730531944789,0.55527066,69766.0,69765.0,0.095544]
[1730531945826,0.5552649,69766.0,69765.0,0.095544]
[1730531946108,0.43292858,69766.0,69765.0,0.095544]
[1730531946550,0.44637326,69766.0,69765.0,0.095544]
[1730531946985,0.44645969,69766.0,69765.0,0.095544]
[1730531947196,0.40176194,69766.0,69765.0,0.095544]
[1730531948699,0.51065356,69766.0,69765.0,0.095544]
[1730531949164,0.49720888,69766.0,69765.0,0.095544]
[1730531949377,0.510646,69766.0,69765.0,0.095544]
[1730531950735,0.49720888,69766.0,69765.0,0.095544]
[1730531950949,0.51064554,69766.0,69765.0,0.095544]
[1730531951605,0.51080112,69766.0,69765.0,0.095544]
[1730531956134,0.51076493,69766.0,69765.0,0.095544]
[1730531966074,0.51076493,69766.0,69765.0,0.003644]
[1730531969049,0.49732827,69766.0,69765.0,0.003644]
[1730531969279,0.51076266,69766.0,69765.0,0.003644]
[1730531969729,0.51070967,69766.0,69765.0,0.003644]
[1730531972177,0.49727528,69766.0,69765.0,0.003644]
[1730531972389,0.51071333,69766.0,69765.0,0.003644]
[1730531979166,0.55554737,69766.0,69765.0,0.003644]
[1730531979818,0.55556032,69766.0,69765.0,0.003644]
[1730531983729,0.55565742,69766.0,69765.0,0.003644]
[1730531985923,0.5556039,69766.0,69765.0,0.003644]
[1730531986122,0.56003285,69766.0,69765.0,0.003644]
[1730531988185,0.40131282,69766.0,69765.0,0.003644]
[1730531988392,0.56010539,69766.0,69765.0,0.003644]
[1730531989216,0.68915586,69766.0,69765.0,0.003644]
[1730531990253,0.56010539,69766.0,69765.0,0.003644]
[1730531992838,0.56010584,69766.0,69765.0,0.003644]
[1730531997704,0.54665439,69766.0,69765.0,0.003644]
[1730531997926,0.5601067,69766.0,69765.0,0.003644]
[1730532000760,0.54665439,69766.0,69765.0,0.003644]
[1730532000967,0.56092869,69766.0,69765.0,0.003644]
[1730532001204,0.56102976,69766.0,69765.0,0.003644]
[1730532003863,0.54757746,69766.0,69765.0,0.003644]
[1730532004086,0.56102975,69766.0,69765.0,0.003644]
[1730532007079,0.66992137,69766.0,69765.0,0.003644]
[1730532007344,0.89137988,69766.0,69765.0,0.003644]
[1730532007560,0.85432137,69766.0,69765.0,0.003644]
[1730532008202,0.85232137,69766.0,69765.0,0.003644]
[1730532008416,0.74342975,69766.0,69765.0,0.003644]
[1730532008641,0.56102975,69766.0,69765.0,0.003644]
[1730532010017,0.56092657,69766.0,69765.0,0.003644]
[1730532012345,0.54747428,69766.0,69765.0,0.003644]
[1730532014419,0.56091288,69766.0,69765.0,0.003644]
[1730532019283,0.56087386,69766.0,69765.0,0.003644]
[1730532023832,0.56086922,69766.0,69765.0,0.003644]
[1730532028201,0.56087138,69766.0,69765.0,0.003644]
[1730532031670,0.56087634,69766.0,69765.0,0.003644]
[1730532037574,0.56090327,69766.0,69765.0,0.003644]
[1730532038858,0.54745971,69766.0,69765.0,0.003644]
[1730532039069,0.56091215,69766.0,69765.0,0.003644]
[1730532042397,0.56091271,69766.0,69765.0,0.003644]
[1730532045312,0.56097537,69766.0,69765.0,0.003644]
[1730532045744,0.54752237,69766.0,69765.0,0.003644]
[1730532045975,0.56097553,69766.0,69765.0,0.003644]
[1730532046633,0.40213698,69766.0,69765.0,0.003644]
[1730532046858,0.5609773,69766.0,69765.0,0.003644]
[1730532049333,0.54752414,69766.0,69765.0,0.003644]
[1730532049552,0.56097777,69766.0,69765.0,0.003644]
[1730532051308,0.56101779,69766.0,69765.0,0.003644]
[1730532053003,0.54756416,69766.0,69765.0,0.003644]
[1730532053231,0.56101379,69766.0,69765.0,0.003644]
[1730532054103,0.56101339,69766.0,69765.0,0.003644]
[1730532055876,0.56100518,69766.0,69765.0,0.003644]
[1730532056555,0.54755595,69766.0,69765.0,0.003644]
[1730532056778,0.56100432,69766.0,69765.0,0.003644]
[1730532058493,0.65600432,69766.0,69765.0,0.003644]
[1730532061823,0.65800432,69766.0,69765.0,0.003644]
[1730532062473,0.65600432,69766.0,69765.0,0.003644]
[1730532062956,0.65600353,69766.0,69765.0,0.003644]
[1730532063819,0.65598805,69766.0,69765.0,0.003644]
[1730532066549,0.56098819,69766.0,69765.0,0.003644]
[1730532066796,0.70622488,69766.0,69765.0,0.003644]
[1730532067026,0.70622479,69766.0,69765.0,0.003644]
[1730532069002,0.70622066,69766.0,69765.0,0.003644]
[1730532071192,0.56098402,69766.0,69765.0,0.003644]
[1730532071413,0.70622123,69766.0,69765.0,0.003644]
[1730532072266,0.56098402,69766.0,69765.0,0.003644]
[1730532072681,0.70622136,69766.0,69765.0,0.003644]
[1730532073094,0.56098402,69766.0,69765.0,0.003644]
[1730532074420,0.54753639,69766.0,69765.0,0.003644]
[1730532076408,0.5609859,69766.0,69765.0,0.003644]
[1730532077762,0.54753639,69766.0,69765.0,0.003644]
[1730532079643,0.69277806,69766.0,69765.0,0.003644]
[1730532082872,0.70622974,69766.0,69765.0,0.003644]
[1730532086148,0.70622941,69766.0,69765.0,0.003644]
[1730532086809,0.70625118,69766.0,69765.0,0.003644]
[1730532087062,0.70625118,69766.0,69765.0,0.174544]
[1730532087063,0.59735956,69766.0,69765.0,0.174544]
[1730532087309,0.20256565,69766.0,69765.0,0.33553601]
[1730532087516,0.20256565,69766.0,69765.0,0.41833525]
[1730532087517,0.04369908,69766.0,69765.0,0.41833525]
[1730532088200,0.02627335,69766.0,69765.0,0.41833525]
[1730532088435,0.02627335,69766.0,69765.0,0.42228954]
[1730532088436,0.01927335,69766.0,69765.0,0.42228954]
[1730532088911,0.02027335,69766.0,69765.0,0.43028954]
[1730532089554,0.01527335,69766.0,69765.0,0.42928954]
[1730532090421,0.01527335,69766.0,69765.0,0.32895354]
[1730532090628,0.01527335,69766.0,69765.0,0.42928954]
[1730532090834,0.01627335,69766.0,69765.0,0.43728954]
[1730532091062,0.03190699,69766.0,69765.0,0.43728954]
[1730532091504,0.03190699,69766.0,69765.0,0.43233525]
[1730532091720,0.03190699,69766.0,69765.0,0.33199925]
[1730532099971,0.13224199,69766.0,69765.0,0.193544]
[1730532100207,0.11879064,69766.0,69765.0,0.193544]
[1730532100478,0.13218315,69766.0,69765.0,0.193544]
[1730532104093,0.1321857,69766.0,69765.0,0.193544]
[1730532105825,0.0318507,69766.0,69765.0,0.193544]
[1730532106663,0.0318507,69766.0,69765.0,0.54618116]
[1730532106897,0.01621706,69766.0,69765.0,0.54618116]
[1730532107332,0.002822,69766.0,69765.0,0.54618116]
[1730532108449,0.01621844,69766.0,69765.0,0.54618116]
[1730532110779,0.002822,69766.0,69765.0,0.54618116]